fUSD/lending_fUSD_20260404
["ID","MTS","AMOUNT","RATE_DAILY","PERIOD"]
[419663330,1775263842054,-851.3961589,0.00010729,2]
[419663331,1775263842064,-851.3961589,0.00010729,2]
[419663332,1775263842074,-851.3961589,0.00010729,2]
[419663333,1775263842088,-851.3961589,0.00010729,2]
[419663334,1775263842099,-851.3961589,0.00010729,2]
[419663335,1775263842109,-851.3961589,0.00010729,2]
[419663336,1775263842120,-851.3961589,0.00010729,2]
[419663337,1775263842131,-500.0,0.00010729,2]
[419663338,1775263842142,-150.0,0.00010729,2]
[419663339,1775263842152,-500.0,0.00010729,2]
[419663340,1775263842163,-500.0,0.00010729,2]
[419663341,1775263842172,-150.0,0.00010729,2]
[419663342,1775263842183,-500.0,0.00010729,2]
[419663343,1775263842194,-500.0,0.00010729,2]
[419663344,1775263842204,-244.85913321,0.00010729,2]
[419663345,1775263842215,-923.35611625,0.00010729,2]
[419663346,1775263842224,-923.35611625,0.00010729,2]
[419663347,1775263842235,-923.35611625,0.00010729,2]
[419663348,1775263842245,-923.35611625,0.00010729,2]
[419663349,1775263842254,-923.35611625,0.00010729,2]
[419663350,1775263842265,-923.35611625,0.00010729,2]
[419663351,1775263842275,-923.35611625,0.00010729,2]
[419663352,1775263842284,-923.35611625,0.00010729,2]
[419663353,1775263842294,-500.0,0.00010729,2]
[419663354,1775263842303,-500.0,0.00010729,2]
[419663355,1775263842313,-500.0,0.00010729,2]
[419663356,1775263842322,-500.0,0.00010729,2]
[419663357,1775263842333,-400.0,0.00010729,2]
[419663358,1775263842343,-500.0,0.0001073,2]
[419663359,1775263842353,-2208232.81313556,0.0001073,2]
[419663360,1775263842364,-5000.0,0.00010736,2]
[419663361,1775263842376,-962.89,0.00010748,2]
[419663362,1775263842386,-500.0,0.00010773,2]
[419663363,1775263842396,-500.0,0.00010773,2]
[419663364,1775263842408,-500.0,0.00010773,2]
[419663365,1775263842418,-245.62200129,0.00010773,2]
[419663366,1775263842427,-1000.0,0.000108,3]
[419663367,1775263842439,-1000.0,0.0001083,2]
[419663368,1775263842448,-33024.725,0.0001083,2]
[419663369,1775263842458,-204.33,0.00010836,2]
[419663370,1775263842468,-1400.0,0.000109,3]
[419663371,1775263842477,-1844.34,0.00010955,2]
[419663372,1775263842486,-189.44715953,0.00010959,2]
[419663373,1775263842496,-218.0,0.00011006,2]
[419663374,1775263842505,-187.0,0.00011014,2]
[419663375,1775263842514,-549.0,0.00011028,2]
[419663376,1775263842523,-282.0,0.00011036,2]
[419663377,1775263842532,-296.0,0.00011054,2]
[419663378,1775263842542,-420.0,0.00011058,2]
[419663379,1775263842551,-827.45201522,0.00011099,2]
[419663380,1775263842560,-26518.72885586,0.00011099,2]
[419663381,1775263842570,-150.0,0.00011233,2]
[419663382,1775263842724,-1008.47953738,0.00011321,2]
[419663383,1775263842734,-600.0,0.00011324,2]
[419663384,1775263842744,-600.0,0.00011324,2]
[419663385,1775263842753,-600.0,0.00011324,2]
[419663386,1775263842762,-600.0,0.00011324,2]
[419663387,1775263842771,-600.0,0.00011324,2]
[419663388,1775263842781,-300.0,0.00011324,2]
[419663389,1775263842790,-250.0,0.00011324,2]
[419663390,1775263842800,-204.33,0.00011378,2]
[419663391,1775263842809,-250.0,0.00011521,2]
[419663392,1775263842818,-250.0,0.00011692,2]
[419663393,1775263842827,-4359.92,0.00011844,2]
[419663394,1775263842837,-204.33,0.0001192,2]
[419663395,1775263842846,-775.92,0.00012055,2]
[419663396,1775263842855,-237.0,0.0001208,2]
[419663397,1775263842864,-962.89,0.00012091,2]
[419663398,1775263842874,-204.33,0.00012462,2]
[419663399,1775263842883,-204.33,0.00013003,2]
[419663400,1775263842893,-514.0,0.00013111,2]
[419663401,1775263842902,-302.38348805,0.0001326,2]
[419663402,1775263842911,-962.89,0.00013435,2]
[419663403,1775263842921,-1230.17,0.00013445,2]
[419663404,1775263842930,-204.33,0.00013545,2]
[419663405,1775263842939,-4751.1,0.00013641,2]
[419663406,1775263842949,-344.52090006,0.00013699,2]
[419663407,1775263842959,-6457.04898413,0.00013987,2]
[419663408,1775263842968,-26518.72885582,0.0001401,2]
[419663409,1775263842978,-827.4520152,0.0001401,2]
[419663410,1775263842988,-14877.74,0.00014063,2]
[419663411,1775263842998,-204.33,0.00014087,2]
[419663412,1775263843007,-45252.04,0.00014305,2]
[419663413,1775263843017,-188.72260925,0.00014529,2]
[419663414,1775263843027,-204.33,0.00014629,2]
[419663415,1775263843037,-473.89,0.000147,2]
[419663416,1775263843047,-501.27485544,0.00014705,2]
[419663417,1775263843057,-962.89,0.00014778,2]
[419663418,1775263843066,-197.55,0.00015068,2]
[419663419,1775263843076,-419.08497794,0.000154,2]
[419663420,1775263843085,-962.89,0.00016122,2]
[419663421,1775263843095,-26518.72885582,0.00017384,2]
[419663422,1775263843105,-827.4520152,0.00017384,2]
[419663423,1775263843115,-26518.72885582,0.00020757,2]
[419663424,1775263843125,-827.4520152,0.00020757,2]
[419663425,1775263843135,-182.38225923,0.00020765,2]
[419663426,1775263843145,-157.0,0.00022,2]
[419663427,1775263843155,-514.0,0.00022667,10]
[419663428,1775263843164,-157.0,0.00023,2]
[419663429,1775263843174,-186.6,0.00023122,2]
[419663430,1775263843183,-186.6,0.00023122,2]
[419663431,1775263843193,-186.6,0.00023122,2]
[419663432,1775263843203,-186.6,0.00023122,2]
[419663433,1775263843213,-186.6,0.00023122,2]
[419663434,1775263843223,-169.0,0.00024,2]
[419663435,1775263843232,-26518.72885582,0.00024131,2]
[419663436,1775263843242,-827.4520152,0.00024131,2]
[419663437,1775263843251,-5000.0,0.00024252,2]
[419663438,1775263843261,-50675.5221539,0.000249,2]
[419663439,1775263843270,-300.0,0.00027397,2]
[419663440,1775263843280,-1000.0,0.00027397,20]
[419663441,1775263843289,-1597.72,0.00027397,10]
[419663442,1775263843299,-6457.04898411,0.00027494,2]
[419663443,1775263843309,-26518.72885582,0.00027505,2]
[419663444,1775263843318,-827.4520152,0.00027505,2]
[419663445,1775263843328,-1301.56,0.0003011,2]
[419663446,1775263843338,-26518.72885582,0.00030879,2]
[419663447,1775263843347,-827.4520152,0.00030879,2]
[419663448,1775263843357,-182.38225923,0.00030883,2]
[419663449,1775263843367,-1500.0,0.00031048,120]
[419663450,1775263843376,-514.0,0.00032222,18]
[419663451,1775263843386,-26518.72885582,0.00034252,2]
[419663452,1775263843395,-827.4520152,0.00034252,2]
[419663453,1775263843406,-4031.89,0.000343,2]
[419663454,1775263843415,-157.0,0.00034405,30]
[419663455,1775263843425,-1500.0,0.00034795,2]
[419663456,1775263843435,-176.3,0.00034795,2]
[419663457,1775263843445,-176.3,0.00034795,2]
[419663458,1775263843455,-176.3,0.00034795,2]
[419663459,1775263843464,-176.3,0.00034795,2]
[419663460,1775263843474,-157.5208496,0.00035138,120]
[419663461,1775263843483,-157.0,0.00035405,30]
[419663462,1775263843493,-3362.426,0.00035544,42]
[419663463,1775263843502,-178.035,0.00035544,42]
[419663465,1775263843512,-157.0,0.00036405,30]
[419663467,1775263843522,-6017.0,0.00036764,2]
[419663469,1775263843531,-150.0,0.00036986,7]
[419663471,1775263843540,-157.0,0.00037405,30]
[419663473,1775263843550,-26518.72885582,0.00037626,2]
[419663475,1775263843559,-827.4520152,0.00037626,2]
[419663477,1775263843569,-419.0,0.00037663,30]
[419663479,1775263843579,-264.0,0.00037663,30]
[419663481,1775263843588,-157.0,0.00038405,30]
[419663483,1775263843597,-157.0,0.00039405,30]
[419663485,1775263843607,-152.0,0.00039509,3]
[419663487,1775263843616,-6017.0,0.00039764,2]
[419663489,1775263843625,-150.0,0.00039777,7]
[419663490,1775263843634,-4031.89,0.000398,30]
[419663492,1775263843644,-1126.03127771,0.00039862,2]
[419663494,1775263843654,-1700.0,0.000399,14]
[419663496,1775263843664,-16376.14903754,0.0004,2]
[419663498,1775263843673,-157.0,0.00040405,30]
[419663500,1775263843683,-150.0,0.000405,120]
[419663502,1775263843692,-300.0,0.000406,14]
[419663504,1775263843702,-190.7012,0.0004068,120]
[419663506,1775263843712,-190.70121,0.0004068,120]
[419663508,1775263843722,-300.0,0.000407,14]
[419663510,1775263843731,-300.0,0.000408,14]
[419663512,1775263843741,-1564.31,0.00040833,120]
[419663514,1775263843751,-1564.31,0.00040833,120]
[419663517,1775263843761,-1564.31,0.00040833,120]
[419663520,1775263843770,-1564.31,0.00040833,60]
[419663522,1775263843779,-1564.31,0.00040833,60]
[419663524,1775263843789,-1564.31,0.00040833,120]
[419663526,1775263843799,-1564.31,0.00040833,120]
[419663528,1775263843809,-1564.31,0.00040833,120]
[419663531,1775263843818,-1564.31,0.00040833,120]
[419663532,1775263843828,-1564.31,0.00040833,120]
[419663534,1775263843838,-1564.31,0.00040833,120]
[419663536,1775263843848,-1564.31,0.00040833,120]
[419663538,1775263843857,-1564.31,0.00040833,120]
[419663541,1775263843867,-1564.31,0.00040833,120]
[419663543,1775263843877,-1564.31,0.00040833,120]
[419663545,1775263843886,-1564.31,0.00040893,120]
[419663547,1775263843896,-1564.31,0.00040893,120]
[419663548,1775263843907,-1564.31,0.00040893,120]
[419663551,1775263843917,-1564.31,0.00040893,120]
[419663552,1775263843927,-1564.31,0.00040893,120]
[419663554,1775263843937,-1564.31,0.00040893,120]
[419663557,1775263843947,-1564.31,0.00040893,120]
[419663559,1775263843956,-1564.31,0.00040893,120]
[419663561,1775263843966,-1564.31,0.00040893,120]
[419663563,1775263843975,-1564.31,0.00040893,120]
[419663565,1775263843984,-1564.33,0.00040893,120]
[419663567,1775263843994,-1564.31,0.00040893,120]
[419663569,1775263844003,-1564.31,0.00040893,120]
[419663571,1775263844012,-1564.31,0.00040893,120]
[419663572,1775263844021,-1564.27,0.00040893,120]
[419663574,1775263844031,-1564.31,0.00040893,120]
[419663576,1775263844040,-300.0,0.000409,14]
[419663578,1775263844050,-84729.0,0.0004095,60]
[419663580,1775263844059,-992.0,0.00040995,5]
[419663582,1775263844069,-794.0,0.00040995,5]
[419663584,1775263844078,-2566.7689016,0.00041,120]
[419663586,1775263844088,-150.0,0.00041,120]
[419663588,1775263844097,-182.38225923,0.00041,2]
[419663590,1775263844107,-26518.72885582,0.00041,15]
[419663592,1775263844116,-6457.04898411,0.00041,2]
[419663595,1775263844127,-827.4520152,0.00041,15]
[419663597,1775263844136,-150.0,0.00041092,120]
[419663599,1775263844146,-157.13720948,0.00041092,120]
[419663601,1775263844155,-500.0,0.00041092,120]
[419663602,1775263844165,-164.15938689,0.00041092,120]
[419663604,1775263844174,-500.0,0.00041092,120]
[419663606,1775263844184,-500.0,0.00041092,120]
[419663608,1775263844193,-500.0,0.00041092,120]
[419663610,1775263844203,-500.0,0.00041092,120]
[419663612,1775263844212,-500.0,0.00041092,120]
[419663614,1775263844222,-500.0,0.00041092,120]
[419663616,1775263844232,-500.0,0.00041092,120]
[419663618,1775263844241,-508.83736131,0.00041092,120]
[419663620,1775263844251,-737.93605145,0.00041094,60]
[419663622,1775263844260,-167.5,0.00041095,120]
[419663624,1775263844269,-500.0,0.00041095,120]
[419663626,1775263844279,-500.0,0.00041095,120]
[419663628,1775263844288,-500.0,0.00041095,120]
[419663630,1775263844297,-395.5582264,0.00041095,120]
[419663632,1775263844306,-500.0,0.00041095,120]
[419663634,1775263844314,-500.0,0.00041095,120]
[419663636,1775263844324,-500.0,0.00041095,120]
[419663638,1775263844333,-500.0,0.00041095,120]
[419663640,1775263844342,-500.0,0.00041095,120]
[419663642,1775263844351,-500.0,0.00041095,120]
[419663644,1775263844361,-500.0,0.00041095,120]
[419663646,1775263844369,-500.0,0.00041095,120]
[419663648,1775263844378,-500.0,0.00041095,120]
[419663650,1775263844389,-500.0,0.00041095,120]
[419663652,1775263844398,-500.0,0.00041095,120]
[419663654,1775263844406,-500.0,0.00041095,2]
[419663656,1775263844415,-500.0,0.00041095,120]
[419663658,1775263844424,-500.0,0.00041095,120]
[419663660,1775263844433,-500.0,0.00041095,120]
[419663661,1775263844442,-500.0,0.00041095,120]
[419663662,1775263844450,-500.0,0.00041095,120]
[419663663,1775263844459,-500.0,0.00041095,120]
[419663664,1775263844470,-319.34630291,0.00041095,120]
[419663665,1775263844479,-500.0,0.00041095,120]
[419663666,1775263844487,-500.0,0.00041095,120]
[419663667,1775263844497,-500.0,0.00041095,120]
[419663668,1775263844505,-596.21,0.00041095,120]
[419663669,1775263844514,-1580.29,0.00041095,120]
[419663670,1775263844523,-607.69,0.00041095,120]
[419663671,1775263844532,-500.0,0.00041095,120]
[419663672,1775263844542,-500.0,0.00041095,120]
[419663673,1775263844553,-500.0,0.00041095,120]
[419663674,1775263844563,-500.0,0.00041095,120]
[419663675,1775263844572,-500.0,0.00041095,120]
[419663676,1775263844582,-500.0,0.00041095,120]
[419663677,1775263844591,-500.0,0.00041095,120]
[419663678,1775263844600,-500.0,0.00041095,120]
[419663679,1775263844609,-500.0,0.00041095,120]
[419663680,1775263844619,-500.0,0.00041095,120]
[419663681,1775263844630,-500.0,0.00041095,120]
[419663682,1775263844639,-500.0,0.00041095,120]
[419663683,1775263844648,-500.0,0.00041095,2]
[419663684,1775263844657,-150.0,0.00041095,2]
[419663685,1775263844666,-500.0,0.00041095,120]
[419663686,1775263844675,-500.0,0.00041095,120]
[419663687,1775263844684,-500.0,0.00041095,120]
[419663688,1775263844693,-9306.01431476,0.00041095,2]
[419663689,1775263844703,-500.0,0.00041095,120]
[419663690,1775263844712,-150.0,0.00041095,2]
[419663691,1775263844721,-500.0,0.00041095,120]
[419663692,1775263844730,-500.0,0.00041095,120]
[419663693,1775263844739,-802.2,0.00041095,30]
[419663694,1775263844748,-56953.68871363,0.00041095,2]
[419663695,1775263844757,-500.0,0.00041095,120]
[419663696,1775263844766,-500.0,0.00041095,120]
[419663697,1775263844775,-500.0,0.00041095,120]
[419663698,1775263844784,-1338.26,0.00041095,120]
[419663699,1775263844793,-500.0,0.00041095,120]
[419663700,1775263844802,-500.0,0.00041095,120]
[419663701,1775263844811,-605.43,0.00041095,120]
[419663702,1775263844820,-500.0,0.00041095,120]
[419663703,1775263844829,-500.0,0.00041095,120]
[419663704,1775263844838,-1122.86,0.00041095,120]
[419663705,1775263844847,-545.79798077,0.00041095,120]
[419663706,1775263844856,-500.0,0.00041095,120]
[419663707,1775263844866,-500.0,0.00041095,120]
[419663708,1775263844875,-500.0,0.00041095,120]
[419663709,1775263844884,-500.0,0.00041095,120]
[419663710,1775263844893,-500.0,0.00041095,120]
[419663711,1775263844902,-500.0,0.00041095,120]
[419663712,1775263844911,-500.0,0.00041095,120]
[419663713,1775263844920,-500.0,0.00041095,120]
[419663714,1775263844930,-500.0,0.00041095,120]
[419663715,1775263844939,-500.0,0.00041095,120]
[419663716,1775263844948,-500.0,0.00041095,120]
[419663717,1775263844958,-500.0,0.00041095,120]
[419663718,1775263844967,-500.0,0.00041095,120]
[419663719,1775263844976,-500.0,0.00041095,120]
[419663720,1775263844986,-500.0,0.00041095,120]
[419663721,1775263844995,-500.0,0.00041095,120]
[419663722,1775263845004,-500.0,0.00041095,120]
[419663723,1775263845014,-500.0,0.00041095,120]
[419663724,1775263845023,-500.0,0.00041095,120]
[419663725,1775263845033,-500.0,0.00041095,120]
[419663726,1775263845043,-500.0,0.00041095,26]
[419663727,1775263845052,-988.87,0.00041095,120]
[419663728,1775263845061,-500.0,0.00041095,120]
[419663729,1775263845070,-500.0,0.00041095,120]
[419663730,1775263845079,-500.0,0.00041095,120]
[419663731,1775263845088,-500.0,0.00041095,120]
[419663732,1775263845097,-500.0,0.00041095,120]
[419663733,1775263845106,-531.78642996,0.00041095,120]
[419663734,1775263845115,-500.0,0.00041095,120]
[419663735,1775263845124,-500.0,0.00041095,120]
[419663736,1775263845133,-1194.44,0.00041095,120]
[419663737,1775263845143,-500.0,0.00041095,120]
[419663738,1775263845152,-500.0,0.00041095,120]
[419663739,1775263845161,-500.0,0.00041095,120]
[419663740,1775263845170,-500.0,0.00041095,120]
[419663741,1775263845179,-500.0,0.00041095,120]
[419663742,1775263845188,-500.0,0.00041095,120]
[419663743,1775263845198,-500.0,0.00041095,120]
[419663744,1775263845207,-500.0,0.00041095,120]
[419663745,1775263845216,-500.0,0.00041095,120]
[419663746,1775263845225,-1208.58,0.00041095,120]
[419663747,1775263845236,-662.88,0.00041095,120]
[419663748,1775263845245,-500.0,0.00041095,120]
[419663749,1775263845254,-500.0,0.00041095,120]
[419663750,1775263845264,-500.0,0.00041095,120]
[419663751,1775263845273,-500.0,0.00041095,120]
[419663752,1775263845282,-500.0,0.00041095,120]
[419663753,1775263845291,-500.0,0.00041095,120]
[419663754,1775263845300,-368.22537792,0.00041095,120]
[419663755,1775263845309,-500.0,0.00041095,120]
[419663756,1775263845318,-500.0,0.00041095,120]
[419663757,1775263845327,-500.0,0.00041095,120]
[419663758,1775263845336,-500.0,0.00041095,120]
[419663759,1775263845345,-500.0,0.00041095,120]
[419663760,1775263845354,-500.0,0.00041095,120]
[419663761,1775263845362,-500.0,0.00041095,120]
[419663762,1775263845372,-522.63,0.00041095,120]
[419663763,1775263845381,-1170.88,0.00041095,120]
[419663764,1775263845389,-500.0,0.00041095,120]
[419663765,1775263845398,-500.0,0.00041095,120]
[419663766,1775263845407,-500.0,0.00041095,120]
[419663767,1775263845416,-1262.91,0.00041095,120]
[419663768,1775263845425,-500.0,0.00041095,120]
[419663769,1775263845434,-500.0,0.00041095,120]
[419663770,1775263845443,-500.0,0.00041095,120]
[419663771,1775263845452,-500.0,0.00041095,120]
[419663772,1775263845461,-609.86,0.00041095,120]
[419663773,1775263845470,-500.0,0.00041095,120]
[419663774,1775263845479,-500.0,0.00041095,120]
[419663775,1775263845488,-177.35961734,0.00041095,120]
[419663776,1775263845497,-500.0,0.00041095,120]
[419663777,1775263845506,-500.0,0.00041095,120]
[419663778,1775263845515,-295.96310463,0.00041095,120]
[419663779,1775263845524,-500.0,0.00041095,120]
[419663780,1775263845533,-900.01,0.00041095,120]
[419663781,1775263845543,-510.60741372,0.00041095,120]
[419663782,1775263845553,-500.0,0.00041095,120]
[419663783,1775263845564,-500.0,0.00041095,120]
[419663784,1775263845574,-500.0,0.00041095,120]
[419663785,1775263845583,-500.0,0.00041095,120]
[419663786,1775263845593,-500.0,0.00041095,120]
[419663787,1775263845602,-500.0,0.00041095,120]
[419663788,1775263845611,-500.0,0.00041095,120]
[419663789,1775263845620,-500.0,0.00041095,120]
[419663790,1775263845629,-500.0,0.00041095,120]
[419663791,1775263845638,-500.0,0.00041095,120]
[419663792,1775263845648,-500.0,0.00041095,120]
[419663793,1775263845658,-500.0,0.00041095,120]
[419663794,1775263845668,-500.0,0.00041095,120]
[419663795,1775263845678,-500.0,0.00041095,120]
[419663796,1775263845688,-500.0,0.00041095,120]
[419663797,1775263845699,-1130.85,0.00041095,120]
[419663798,1775263845710,-500.0,0.00041095,120]
[419663799,1775263845720,-500.0,0.00041095,120]
[419663800,1775263845731,-500.0,0.00041095,120]
[419663801,1775263845740,-500.0,0.00041095,120]
[419663802,1775263845749,-500.0,0.00041095,120]
[419663803,1775263845758,-500.0,0.00041095,120]
[419663804,1775263845768,-500.0,0.00041095,120]
[419663805,1775263845778,-500.0,0.00041095,120]
[419663806,1775263845787,-589.55,0.00041095,120]
[419663807,1775263845796,-534.71195864,0.00041095,120]
[419663808,1775263845805,-500.0,0.00041095,120]
[419663809,1775263845814,-500.0,0.00041095,120]
[419663810,1775263845823,-500.0,0.00041095,90]
[419663811,1775263845832,-500.0,0.00041095,120]
[419663812,1775263845841,-500.0,0.00041095,120]
[419663813,1775263845850,-373.93504599,0.00041095,120]
[419663814,1775263845859,-500.0,0.00041095,120]
[419663815,1775263845868,-500.0,0.00041095,120]
[419663816,1775263845877,-500.0,0.00041095,120]
[419663817,1775263845887,-500.0,0.00041095,120]
[419663818,1775263845896,-1492.17,0.00041095,120]
[419663819,1775263845907,-252.88997366,0.00041095,120]
[419663820,1775263845916,-500.0,0.00041095,120]
[419663821,1775263845927,-500.0,0.00041095,120]
[419663822,1775263845938,-500.0,0.00041095,120]
[419663823,1775263845947,-500.0,0.00041095,120]
[419663824,1775263845956,-500.0,0.00041095,120]
[419663825,1775263845966,-500.0,0.00041095,120]
[419663826,1775263845976,-500.0,0.00041095,120]
[419663827,1775263845986,-500.0,0.00041095,120]
[419663828,1775263845995,-870.15,0.00041095,120]
[419663829,1775263846006,-500.0,0.00041095,120]
[419663830,1775263846015,-500.0,0.00041095,2]
[419663831,1775263846024,-500.0,0.00041095,120]
[419663832,1775263846033,-500.0,0.00041095,120]
[419663833,1775263846043,-500.0,0.00041095,120]
[419663834,1775263846054,-500.0,0.00041095,120]
[419663835,1775263846064,-500.0,0.00041095,120]
[419663836,1775263846074,-500.0,0.00041095,120]
[419663837,1775263846084,-500.0,0.00041095,120]
[419663838,1775263846095,-500.0,0.00041095,120]
[419663839,1775263846104,-765.08,0.00041095,120]
[419663840,1775263846113,-500.0,0.00041095,120]
[419663841,1775263846122,-500.0,0.00041095,120]
[419663842,1775263846132,-500.0,0.00041095,120]
[419663843,1775263846141,-1188.58,0.00041095,120]
[419663844,1775263846151,-500.0,0.00041095,120]
[419663845,1775263846161,-500.0,0.00041095,120]
[419663846,1775263846172,-679.4,0.00041095,120]
[419663847,1775263846183,-500.0,0.00041095,120]
[419663848,1775263846193,-500.0,0.00041095,120]
[419663849,1775263846203,-500.0,0.00041095,120]
[419663850,1775263846212,-500.0,0.00041095,120]
[419663851,1775263846222,-935.83,0.00041095,120]
[419663852,1775263846233,-1483.52,0.00041095,120]
[419663853,1775263846244,-500.0,0.00041095,120]
[419663854,1775263846255,-1105.72,0.00041095,120]
[419663855,1775263846266,-500.0,0.00041095,120]
[419663856,1775263846277,-500.0,0.00041095,120]
[419663857,1775263846286,-500.0,0.00041095,120]
[419663858,1775263846295,-500.0,0.00041095,120]
[419663859,1775263846304,-475.89388578,0.00041095,120]
[419663860,1775263846313,-500.0,0.00041095,120]
[419663861,1775263846322,-1517.25,0.00041095,120]
[419663862,1775263846331,-500.0,0.00041095,120]
[419663863,1775263846340,-500.0,0.00041095,120]
[419663864,1775263846349,-348.37439668,0.00041095,120]
[419663865,1775263846358,-1281.18,0.00041095,120]
[419663866,1775263846367,-500.0,0.00041095,120]
[419663867,1775263846377,-500.0,0.00041095,120]
[419663868,1775263846386,-500.0,0.00041095,120]
[419663869,1775263846395,-500.0,0.00041095,120]
[419663870,1775263846404,-500.0,0.00041095,120]
[419663871,1775263846414,-500.0,0.00041095,120]
[419663872,1775263846423,-243.44,0.00041095,30]
[419663873,1775263846432,-500.0,0.00041095,120]
[419663874,1775263846443,-500.0,0.00041095,60]
[419663875,1775263846453,-500.0,0.00041095,120]
[419663876,1775263846463,-363.34999236,0.00041095,120]
[419663877,1775263846473,-500.0,0.00041095,120]
[419663878,1775263846482,-500.0,0.00041095,120]
[419663879,1775263846491,-696.79,0.00041095,120]
[419663880,1775263846502,-500.0,0.00041095,120]
[419663881,1775263846514,-524.34,0.00041095,120]
[419663882,1775263846523,-500.0,0.00041095,120]
[419663883,1775263846532,-227.98946449,0.00041095,120]
[419663884,1775263846544,-500.0,0.00041095,120]
[419663885,1775263846554,-500.0,0.00041095,120]
[419663886,1775263846565,-1663.67,0.00041095,120]
[419663887,1775263846577,-500.0,0.00041095,120]
[419663888,1775263846586,-500.0,0.00041095,120]
[419663889,1775263846596,-679.78,0.00041095,120]
[419663891,1775263846605,-584.12,0.00041095,120]
[419663893,1775263846614,-500.0,0.00041095,120]
[419663894,1775263846623,-1765.4,0.00041095,120]
[419663895,1775263846631,-500.0,0.00041095,120]
[419663896,1775263846640,-500.0,0.00041095,120]
[419663897,1775263846649,-500.0,0.00041095,120]
[419663898,1775263846658,-500.0,0.00041095,120]
[419663899,1775263846667,-151.296709,0.00041095,120]
[419663900,1775263846676,-500.0,0.00041095,120]
[419663901,1775263846685,-572.94,0.00041095,120]
[419663902,1775263846695,-500.0,0.00041095,120]
[419663903,1775263846704,-500.0,0.00041095,120]
[419663904,1775263846713,-500.0,0.00041095,120]
[419663905,1775263846871,-500.0,0.00041095,120]
[419663906,1775263846893,-500.0,0.00041095,120]
[419663907,1775263846903,-1215.89,0.00041095,120]
[419663908,1775263846913,-500.0,0.00041095,120]
[419663909,1775263846922,-1556.41,0.00041095,7]
[419663910,1775263846931,-500.0,0.00041095,120]
[419663911,1775263846940,-1858.5,0.00041095,120]
[419663912,1775263846949,-500.0,0.00041095,120]
[419663913,1775263846959,-1361.13,0.00041095,120]
[419663914,1775263846968,-500.0,0.00041095,14]
[419663915,1775263846978,-1079.34,0.00041095,120]
[419663916,1775263846987,-500.0,0.00041095,120]
[419663917,1775263846997,-500.0,0.00041095,120]
[419663918,1775263847007,-500.0,0.00041095,120]
[419663919,1775263847016,-500.0,0.00041095,120]
[419663920,1775263847025,-529.08,0.00041095,120]
[419663921,1775263847035,-500.0,0.00041095,120]
[419663922,1775263847044,-500.0,0.00041095,120]
[419663923,1775263847053,-500.0,0.00041095,120]
[419663924,1775263847063,-500.0,0.00041095,120]
[419663925,1775263847073,-500.0,0.00041095,120]
[419663926,1775263847083,-500.0,0.00041095,120]
[419663927,1775263847092,-500.0,0.00041095,120]
[419663928,1775263847101,-500.0,0.00041095,120]
[419663929,1775263847110,-500.0,0.00041095,120]
[419663930,1775263847120,-500.0,0.00041095,120]